[Event "Late-Titled-Tuesday-Blitz-November-28-2023"]
[Site "Chess.com"]
[Date "2023.11.28"]
[Round "3"]
[White "Thormento16"]
[Black "Ellaijio_B"]
[Result "1/2-1/2"]
[WhiteElo "2394"]
[BlackElo "2778"]
[TimeControl "180+1"]
[EndTime "14:28:50 PST"]
[Termination "Game drawn by repetition"]

1. e4 {[%clk 0:03:00.9]} 1... e6 {[%clk 0:02:51.2]} 2. d4 {[%clk 0:03:00.7]}
2... d5 {[%clk 0:02:51.4]} 3. exd5 {[%clk 0:03:01.6]} 3... exd5 {[%clk
0:02:51.2]} 4. Bd3 {[%clk 0:03:01.6]} 4... Bd6 {[%clk 0:02:50.7]} 5. Nf3 {[%clk
0:02:48.1]} 5... Nc6 {[%clk 0:02:50]} 6. c3 {[%clk 0:02:45.4]} 6... Nge7 {[%clk
0:02:49.9]} 7. O-O {[%clk 0:02:44.9]} 7... Bg4 {[%clk 0:02:49.6]} 8. h3 {[%clk
0:02:43.6]} 8... Bh5 {[%clk 0:02:49]} 9. Bg5 {[%clk 0:02:43.4]} 9... f6 {[%clk
0:02:47.4]} 10. Bh4 {[%clk 0:02:38.8]} 10... Qd7 {[%clk 0:02:47.1]} 11. Bg3
{[%clk 0:02:34.5]} 11... O-O-O {[%clk 0:02:44.5]} 12. Bxd6 {[%clk 0:02:33.1]}
12... Qxd6 {[%clk 0:02:45.4]} 13. Nbd2 {[%clk 0:02:32.5]} 13... g5 {[%clk
0:02:43.7]} 14. b4 {[%clk 0:02:01.2]} 14... Bg6 {[%clk 0:02:40]} 15. Nb3 {[%clk
0:01:58.4]} 15... Rdg8 {[%clk 0:02:27.2]} 16. Nc5 {[%clk 0:01:53.9]} 16... h5
{[%clk 0:02:21.6]} 17. b5 {[%clk 0:01:39.2]} 17... Nd8 {[%clk 0:02:20.9]} 18.
Qa4 {[%clk 0:01:34.5]} 18... Kb8 {[%clk 0:02:15.5]} 19. Rab1 {[%clk 0:01:34.1]}
19... Bxd3 {[%clk 0:02:13]} 20. Nxd3 {[%clk 0:01:35]} 20... g4 {[%clk
0:02:11.7]} 21. Nh4 {[%clk 0:01:16.6]} 21... gxh3 {[%clk 0:02:08.2]} 22. g3
{[%clk 0:01:17.2]} 22... Rxg3+ {[%clk 0:01:38.5]} 23. fxg3 {[%clk 0:01:16.5]}
23... Qxg3+ {[%clk 0:01:39.4]} 24. Kh1 {[%clk 0:01:16]} 24... Qxh4 {[%clk
0:01:39.3]} 25. Nc5 {[%clk 0:01:08.7]} 25... Rg8 {[%clk 0:01:21.5]} 26. Nd7+
{[%clk 0:00:51.3]} 26... Ka8 {[%clk 0:01:21.1]} 27. Nxf6 {[%clk 0:00:52.2]}
27... Rg2 {[%clk 0:01:06.3]} 28. b6 {[%clk 0:00:45.7]} 28... Ndc6 {[%clk
0:00:52.3]} 29. Nxh5 {[%clk 0:00:39.7]} 29... Rg8 {[%clk 0:00:36.1]} 30. Nf6
{[%clk 0:00:35.2]} 30... Qg3 {[%clk 0:00:24.5]} 31. Rb2 {[%clk 0:00:30.5]} 31...
Qg2+ {[%clk 0:00:15.3]} 32. Rxg2 {[%clk 0:00:30]} 32... hxg2+ {[%clk 0:00:16.2]}
33. Kg1 {[%clk 0:00:30.7]} 33... gxf1=Q+ {[%clk 0:00:16.6]} 34. Kxf1 {[%clk
0:00:31.6]} 34... Rf8 {[%clk 0:00:17.3]} 35. bxc7 {[%clk 0:00:32.5]} 35... Rxf6+
{[%clk 0:00:17.4]} 36. Ke2 {[%clk 0:00:31.7]} 36... Rf8 {[%clk 0:00:18]} 37. Qa3
{[%clk 0:00:29.5]} 37... Rc8 {[%clk 0:00:17.5]} 38. Qd6 {[%clk 0:00:29.6]} 38...
b6 {[%clk 0:00:18]} 39. c4 {[%clk 0:00:26.7]} 39... Nxd4+ {[%clk 0:00:16.9]} 40.
Kd1 {[%clk 0:00:21.6]} 40... Ndc6 {[%clk 0:00:15.3]} 41. cxd5 {[%clk 0:00:19]}
41... Kb7 {[%clk 0:00:15.8]} 42. dxc6+ {[%clk 0:00:17]} 42... Nxc6 {[%clk
0:00:16.7]} 43. Kc1 {[%clk 0:00:15]} 43... Rxc7 {[%clk 0:00:17.6]} 44. Kb1
{[%clk 0:00:14.9]} 44... a6 {[%clk 0:00:17.7]} 45. Qd5 {[%clk 0:00:15.3]} 45...
b5 {[%clk 0:00:18.2]} 46. a3 {[%clk 0:00:14.7]} 46... Kb6 {[%clk 0:00:17.7]} 47.
Qe4 {[%clk 0:00:14.4]} 47... Na5 {[%clk 0:00:16.9]} 48. Qd4+ {[%clk 0:00:13.6]}
48... Kb7 {[%clk 0:00:17.2]} 49. a4 {[%clk 0:00:12.9]} 49... Nc6 {[%clk
0:00:15.7]} 50. Qe4 {[%clk 0:00:11.6]} 50... b4 {[%clk 0:00:15.9]} 51. Kb2
{[%clk 0:00:11]} 51... a5 {[%clk 0:00:16.1]} 52. Kb3 {[%clk 0:00:11.4]} 52...
Rd7 {[%clk 0:00:16.2]} 53. Kb2 {[%clk 0:00:08.9]} 53... Rd2+ {[%clk 0:00:15.9]}
54. Kb1 {[%clk 0:00:08.8]} 54... Rd4 {[%clk 0:00:16.6]} 55. Qf5 {[%clk 0:00:09]}
55... Kc7 {[%clk 0:00:12.8]} 56. Qf7+ {[%clk 0:00:08.3]} 56... Kd6 {[%clk
0:00:12.9]} 57. Qf6+ {[%clk 0:00:08.6]} 57... Kc5 {[%clk 0:00:13.4]} 58. Qf5+
{[%clk 0:00:08.5]} 58... Rd5 {[%clk 0:00:13.9]} 59. Qc8 {[%clk 0:00:08.3]} 59...
Re5 {[%clk 0:00:12.7]} 60. Qb7 {[%clk 0:00:08.5]} 60... Kd6 {[%clk 0:00:12.7]}
61. Qb6 {[%clk 0:00:08.4]} 61... Re1+ {[%clk 0:00:12.3]} 62. Kb2 {[%clk
0:00:08.7]} 62... Re2+ {[%clk 0:00:12.8]} 63. Kb1 {[%clk 0:00:09.3]} 63... Re5
{[%clk 0:00:13.4]} 64. Kb2 {[%clk 0:00:08.9]} 64... Rc5 {[%clk 0:00:13.9]} 65.
Kb1 {[%clk 0:00:08.6]} 65... Rc3 {[%clk 0:00:14.4]} 66. Kb2 {[%clk 0:00:08.6]}
66... Ra3 {[%clk 0:00:15.1]} 67. Qb5 {[%clk 0:00:08.9]} 67... Rc3 {[%clk
0:00:14.8]} 68. Qb6 {[%clk 0:00:08.8]} 68... Rc5 {[%clk 0:00:14.2]} 69. Qb7
{[%clk 0:00:08.5]} 69... Kd5 {[%clk 0:00:14.4]} 70. Qd7+ {[%clk 0:00:08.3]}
70... Kc4 {[%clk 0:00:14.6]} 71. Qe6+ {[%clk 0:00:08.9]} 71... Kd4 {[%clk
0:00:14.5]} 72. Qd6+ {[%clk 0:00:08.6]} 72... Kc4 {[%clk 0:00:14]} 73. Qe6+
{[%clk 0:00:09.2]} 73... Kd3 {[%clk 0:00:14.3]} 74. Qd6+ {[%clk 0:00:09.2]}
74... Kc4 {[%clk 0:00:14.8]} 75. Qe6+ {[%clk 0:00:09.5]} 1/2-1/2

[Event "Late-Titled-Tuesday-Blitz-November-28-2023"]
[Site "Chess.com"]
[Date "2023.11.28"]
[Round "3"]
[White "OneTrickPony_82"]
[Black "NikolaGry"]
[Result "0-1"]
[WhiteElo "2495"]
[BlackElo "2711"]
[TimeControl "180+1"]
[EndTime "14:28:51 PST"]
[Termination "NikolaGry won on time"]

1. d4 {[%clk 0:03:00.9]} 1... g6 {[%clk 0:02:58.4]} 2. e4 {[%clk 0:03:00.4]}
2... Bg7 {[%clk 0:02:57.1]} 3. Nf3 {[%clk 0:03:00.9]} 3... d6 {[%clk 0:02:57.1]}
4. Be3 {[%clk 0:03:01]} 4... Nf6 {[%clk 0:02:56.2]} 5. Nc3 {[%clk 0:03:01]} 5...
Bg4 {[%clk 0:02:53.6]} 6. Qd2 {[%clk 0:02:58.2]} 6... Nbd7 {[%clk 0:02:51.3]} 7.
Bh6 {[%clk 0:02:37.1]} 7... Bxh6 {[%clk 0:02:50]} 8. Qxh6 {[%clk 0:02:36.9]}
8... Bxf3 {[%clk 0:02:49.8]} 9. gxf3 {[%clk 0:02:36.9]} 9... c6 {[%clk
0:02:44.6]} 10. O-O-O {[%clk 0:02:29.8]} 10... Qa5 {[%clk 0:02:42.8]} 11. Be2
{[%clk 0:02:08.8]} 11... b5 {[%clk 0:02:29.2]} 12. a3 {[%clk 0:01:52]} 12... b4
{[%clk 0:02:22.9]} 13. Nb1 {[%clk 0:01:39.9]} 13... Rb8 {[%clk 0:02:11.1]} 14.
Qd2 {[%clk 0:01:28.7]} 14... c5 {[%clk 0:02:00.5]} 15. dxc5 {[%clk 0:01:15.6]}
15... Nxc5 {[%clk 0:01:52.5]} 16. Bc4 {[%clk 0:01:07.7]} 16... O-O {[%clk
0:01:47.2]} 17. h4 {[%clk 0:01:04.1]} 17... Kh8 {[%clk 0:01:14.6]} 18. h5 {[%clk
0:01:01.5]} 18... g5 {[%clk 0:01:14.6]} 19. h6 {[%clk 0:00:48.9]} 19... Qb6
{[%clk 0:00:51.5]} 20. Qxg5 {[%clk 0:00:38.9]} 20... Rg8 {[%clk 0:00:49.3]} 21.
Qe3 {[%clk 0:00:39.3]} 21... bxa3 {[%clk 0:00:46.6]} 22. Qxa3 {[%clk 0:00:39.3]}
22... Qb4 {[%clk 0:00:45.7]} 23. Qxb4 {[%clk 0:00:38.4]} 23... Rxb4 {[%clk
0:00:45.7]} 24. Bxf7 {[%clk 0:00:39]} 24... Rgb8 {[%clk 0:00:44.8]} 25. b3
{[%clk 0:00:34.7]} 25... a5 {[%clk 0:00:43.5]} 26. Nc3 {[%clk 0:00:31]} 26... a4
{[%clk 0:00:36.8]} 27. Nxa4 {[%clk 0:00:30.7]} 27... Nxa4 {[%clk 0:00:36.6]} 28.
bxa4 {[%clk 0:00:31]} 28... Rxa4 {[%clk 0:00:36.8]} 29. Bb3 {[%clk 0:00:29.2]}
29... Ra5 {[%clk 0:00:32.9]} 30. Kd2 {[%clk 0:00:25.1]} 30... Rf8 {[%clk
0:00:27.5]} 31. Ke3 {[%clk 0:00:21.5]} 31... Re5 {[%clk 0:00:24.7]} 32. Ra1
{[%clk 0:00:14.9]} 32... Nd7 {[%clk 0:00:19.7]} 33. Rh4 {[%clk 0:00:13.3]} 33...
Nf6 {[%clk 0:00:17.2]} 34. Rg1 {[%clk 0:00:11.9]} 34... Rc5 {[%clk 0:00:14.3]}
35. c4 {[%clk 0:00:11.6]} 35... Rb8 {[%clk 0:00:13.2]} 36. Bc2 {[%clk
0:00:10.5]} 36... Rxc4 {[%clk 0:00:13.3]} 37. Bd3 {[%clk 0:00:10.2]} 37... Rc3
{[%clk 0:00:13.4]} 38. Rd1 {[%clk 0:00:10.7]} 38... Rbb3 {[%clk 0:00:12.5]} 39.
Ke2 {[%clk 0:00:11]} 39... Kg8 {[%clk 0:00:12.4]} 40. f4 {[%clk 0:00:11]} 40...
Kf8 {[%clk 0:00:09.4]} 41. e5 {[%clk 0:00:11.4]} 41... dxe5 {[%clk 0:00:09.2]}
42. fxe5 {[%clk 0:00:11.8]} 42... Rb2+ {[%clk 0:00:08.5]} 43. Kf1 {[%clk
0:00:11.2]} 43... Nd7 {[%clk 0:00:07.5]} 44. Bxh7 {[%clk 0:00:11.2]} 44... Nxe5
{[%clk 0:00:07.7]} 45. Rf4+ {[%clk 0:00:11.5]} 45... Ke8 {[%clk 0:00:07]} 46.
Be4 {[%clk 0:00:11.6]} 46... Rb6 {[%clk 0:00:05]} 47. h7 {[%clk 0:00:11.7]}
47... Rh6 {[%clk 0:00:05.5]} 48. Ke2 {[%clk 0:00:11.5]} 48... Rc7 {[%clk
0:00:04.8]} 49. Rd5 {[%clk 0:00:11]} 49... Nf7 {[%clk 0:00:04.1]} 50. Bg6 {[%clk
0:00:11]} 50... Rxg6 {[%clk 0:00:03.7]} 51. Rxf7 {[%clk 0:00:11.4]} 51... Re6+
{[%clk 0:00:03.7]} 52. Kf1 {[%clk 0:00:10.5]} 52... Rh6 {[%clk 0:00:04.2]} 53.
Rg7 {[%clk 0:00:10.3]} 53... Rc1+ {[%clk 0:00:04.1]} 54. Kg2 {[%clk 0:00:10.1]}
54... Rch1 {[%clk 0:00:03.8]} 55. Rg8+ {[%clk 0:00:08.3]} 55... Kf7 {[%clk
0:00:03.5]} 56. Rdg5 {[%clk 0:00:08.8]} 56... Rxh7 {[%clk 0:00:02.9]} 57. R8g6
{[%clk 0:00:09.5]} 57... R7h2+ {[%clk 0:00:02]} 58. Kf3 {[%clk 0:00:10.1]} 58...
Rh3+ {[%clk 0:00:02.2]} 59. Rg3 {[%clk 0:00:09.8]} 59... Rh7 {[%clk 0:00:02.5]}
60. R6g4 {[%clk 0:00:09.4]} 60... R1h6 {[%clk 0:00:03.1]} 61. Rf4+ {[%clk
0:00:09.7]} 61... Rf6 {[%clk 0:00:03.6]} 62. Rxf6+ {[%clk 0:00:10]} 62... exf6
{[%clk 0:00:04]} 63. Kg2 {[%clk 0:00:10.7]} 63... Rh5 {[%clk 0:00:04.4]} 64. Rg4
{[%clk 0:00:10.8]} 64... Rg5 {[%clk 0:00:04.8]} 65. Rg3 {[%clk 0:00:11.4]} 65...
Rxg3+ {[%clk 0:00:04.7]} 66. Kxg3 {[%clk 0:00:12]} 66... Kg6 {[%clk 0:00:05]}
67. Kf3 {[%clk 0:00:12.3]} 67... f5 {[%clk 0:00:05]} 68. Kf4 {[%clk 0:00:12.5]}
68... Kf6 {[%clk 0:00:05.3]} 69. f3 {[%clk 0:00:13.1]} 69... Ke6 {[%clk
0:00:05.5]} 70. Kg5 {[%clk 0:00:13.3]} 70... Ke5 {[%clk 0:00:05.7]} 71. Kh4
{[%clk 0:00:05.6]} 71... Kf4 {[%clk 0:00:05.6]} 0-1

[Event "Late-Titled-Tuesday-Blitz-November-28-2023"]
[Site "Chess.com"]
[Date "2023.11.28"]
[Round "3"]
[White "Aradhya2000"]
[Black "ChristopherYoo"]
[Result "1/2-1/2"]
[WhiteElo "2725"]
[BlackElo "3034"]
[TimeControl "180+1"]
[EndTime "14:28:57 PST"]
[Termination "Game drawn by stalemate"]

1. d4 {[%clk 0:03:00.9]} 1... Nf6 {[%clk 0:02:54.5]} 2. c4 {[%clk 0:03:01.4]}
2... g6 {[%clk 0:02:54.3]} 3. g3 {[%clk 0:03:00.8]} 3... Bg7 {[%clk 0:02:54.2]}
4. Bg2 {[%clk 0:03:01.5]} 4... d6 {[%clk 0:02:49.5]} 5. Nc3 {[%clk 0:03:01.2]}
5... Nbd7 {[%clk 0:02:45.8]} 6. e3 {[%clk 0:02:41.3]} 6... O-O {[%clk
0:02:44.8]} 7. Nge2 {[%clk 0:02:41.5]} 7... e5 {[%clk 0:02:44.6]} 8. O-O {[%clk
0:02:42]} 8... Re8 {[%clk 0:02:44.5]} 9. b3 {[%clk 0:02:41.5]} 9... h5 {[%clk
0:02:43.1]} 10. Bb2 {[%clk 0:02:36.7]} 10... h4 {[%clk 0:02:36.9]} 11. dxe5
{[%clk 0:02:34.4]} 11... dxe5 {[%clk 0:02:31.2]} 12. gxh4 {[%clk 0:02:27.7]}
12... c6 {[%clk 0:02:00.9]} 13. Ng3 {[%clk 0:02:25.5]} 13... Nc5 {[%clk
0:02:00.6]} 14. h5 {[%clk 0:02:21.3]} 14... Qxd1 {[%clk 0:01:59.8]} 15. Raxd1
{[%clk 0:02:18.6]} 15... gxh5 {[%clk 0:01:59.7]} 16. b4 {[%clk 0:02:03.2]} 16...
h4 {[%clk 0:01:55.3]} 17. bxc5 {[%clk 0:01:52.3]} 17... hxg3 {[%clk 0:01:55.1]}
18. hxg3 {[%clk 0:01:53.2]} 18... Be6 {[%clk 0:01:45.1]} 19. Rd6 {[%clk
0:01:46.1]} 19... Bf8 {[%clk 0:01:39.9]} 20. Rd2 {[%clk 0:01:42.8]} 20... Bxc5
{[%clk 0:01:34]} 21. Rc1 {[%clk 0:01:42.8]} 21... Bb4 {[%clk 0:01:25.8]} 22.
Rdd1 {[%clk 0:01:36.4]} 22... Rad8 {[%clk 0:01:23.6]} 23. Rxd8 {[%clk 0:01:28]}
23... Rxd8 {[%clk 0:01:24.5]} 24. Ne4 {[%clk 0:01:28.6]} 24... Nxe4 {[%clk
0:01:21.5]} 25. Bxe4 {[%clk 0:01:29.5]} 25... f6 {[%clk 0:01:20.8]} 26. Bc3
{[%clk 0:01:28]} 26... Bxc3 {[%clk 0:01:14.3]} 27. Rxc3 {[%clk 0:01:28.1]} 27...
Rd2 {[%clk 0:01:14.8]} 28. Bc2 {[%clk 0:01:26.2]} 28... Kf7 {[%clk 0:00:47.9]}
29. Kf1 {[%clk 0:01:25.8]} 29... Ke7 {[%clk 0:00:39]} 30. Ke1 {[%clk 0:01:25.7]}
30... Rd8 {[%clk 0:00:39.2]} 31. c5 {[%clk 0:01:25.3]} 31... Rh8 {[%clk
0:00:33.3]} 32. Ra3 {[%clk 0:01:12.5]} 32... a6 {[%clk 0:00:32.7]} 33. Bb3
{[%clk 0:01:12.7]} 33... Rh1+ {[%clk 0:00:31.4]} 34. Kd2 {[%clk 0:01:12.8]}
34... Bf5 {[%clk 0:00:22.9]} 35. Bc4 {[%clk 0:01:08.9]} 35... Rh2 {[%clk
0:00:16.6]} 36. Ke1 {[%clk 0:01:01.3]} 36... Be6 {[%clk 0:00:16.6]} 37. Bxe6
{[%clk 0:00:58.8]} 37... Kxe6 {[%clk 0:00:17.5]} 38. Rb3 {[%clk 0:00:59.4]}
38... Rh7 {[%clk 0:00:15.5]} 39. e4 {[%clk 0:00:59.9]} 39... f5 {[%clk
0:00:15.2]} 40. f3 {[%clk 0:00:55.3]} 40... fxe4 {[%clk 0:00:14.9]} 41. fxe4
{[%clk 0:00:56.2]} 41... a5 {[%clk 0:00:09]} 42. a4 {[%clk 0:00:52.2]} 42... Rh2
{[%clk 0:00:04.2]} 43. Rxb7 {[%clk 0:00:50.4]} 43... Ra2 {[%clk 0:00:04.5]} 44.
Rc7 {[%clk 0:00:44.9]} 44... Rxa4 {[%clk 0:00:04.6]} 45. Rxc6+ {[%clk
0:00:45.3]} 45... Kd7 {[%clk 0:00:05.2]} 46. Ra6 {[%clk 0:00:38.3]} 46... Rxe4+
{[%clk 0:00:04.6]} 47. Kf2 {[%clk 0:00:38.6]} 47... a4 {[%clk 0:00:04.9]} 48.
Kf3 {[%clk 0:00:39]} 48... Rc4 {[%clk 0:00:04.6]} 49. g4 {[%clk 0:00:38.9]}
49... Rxc5 {[%clk 0:00:01.8]} 50. Rxa4 {[%clk 0:00:38.3]} 50... Ke6 {[%clk
0:00:02.4]} 51. Ra6+ {[%clk 0:00:31.4]} 51... Kd5 {[%clk 0:00:01.9]} 52. g5
{[%clk 0:00:30]} 52... Rc3+ {[%clk 0:00:02.1]} 53. Kg4 {[%clk 0:00:30.1]} 53...
e4 {[%clk 0:00:02]} 54. g6 {[%clk 0:00:28.2]} 54... Rc1 {[%clk 0:00:02.1]} 55.
Ra5+ {[%clk 0:00:21.1]} 55... Ke6 {[%clk 0:00:02.4]} 56. Kf4 {[%clk 0:00:21.1]}
56... Rg1 {[%clk 0:00:02.6]} 57. Kxe4 {[%clk 0:00:18.7]} 57... Kf6 {[%clk
0:00:02.7]} 58. Ra6+ {[%clk 0:00:18.6]} 58... Kg7 {[%clk 0:00:03.2]} 59. Kf5
{[%clk 0:00:18.6]} 59... Rf1+ {[%clk 0:00:03.2]} 60. Kg5 {[%clk 0:00:19.1]}
60... Rg1+ {[%clk 0:00:03.7]} 61. Kf5 {[%clk 0:00:19.7]} 61... Rf1+ {[%clk
0:00:04.2]} 62. Kg5 {[%clk 0:00:20]} 62... Rg1+ {[%clk 0:00:04.9]} 63. Kh5
{[%clk 0:00:20.5]} 63... Rg2 {[%clk 0:00:04.7]} 64. Ra7+ {[%clk 0:00:19.9]}
64... Kg8 {[%clk 0:00:05.4]} 65. Kh6 {[%clk 0:00:19.7]} 65... Rh2+ {[%clk
0:00:05.8]} 66. Kg5 {[%clk 0:00:20.1]} 66... Rg2+ {[%clk 0:00:06.7]} 67. Kf6
{[%clk 0:00:20.2]} 67... Rf2+ {[%clk 0:00:07.2]} 68. Ke6 {[%clk 0:00:20.7]}
68... Rf1 {[%clk 0:00:07.2]} 69. Ke5 {[%clk 0:00:21]} 69... Rf2 {[%clk
0:00:07.1]} 70. Rb7 {[%clk 0:00:20.6]} 70... Rf1 {[%clk 0:00:07.5]} 71. Ke6
{[%clk 0:00:20.4]} 71... Rf2 {[%clk 0:00:07.8]} 72. Rf7 {[%clk 0:00:20.2]} 72...
Rxf7 {[%clk 0:00:07.6]} 73. gxf7+ {[%clk 0:00:20.5]} 73... Kf8 {[%clk
0:00:08.3]} 74. Kf6 {[%clk 0:00:21.1]} 1/2-1/2

[Event "Late-Titled-Tuesday-Blitz-November-28-2023"]
[Site "Chess.com"]
[Date "2023.11.28"]
[Round "3"]
[White "KVAIDAN"]
[Black "TrenerChos"]
[Result "0-1"]
[WhiteElo "2373"]
[BlackElo "2599"]
[TimeControl "180+1"]
[EndTime "14:28:58 PST"]
[Termination "TrenerChos won on time"]

1. f4 {[%clk 0:03:00]} 1... e5 {[%clk 0:02:50.2]} 2. d3 {[%clk 0:02:59.3]} 2...
Nc6 {[%clk 0:02:48.5]} 3. Nf3 {[%clk 0:02:57]} 3... exf4 {[%clk 0:02:45.4]} 4.
Bxf4 {[%clk 0:02:55.5]} 4... Nf6 {[%clk 0:02:45.5]} 5. e4 {[%clk 0:02:52.8]}
5... Bc5 {[%clk 0:02:44.7]} 6. Nc3 {[%clk 0:02:52.5]} 6... O-O {[%clk
0:02:40.4]} 7. Bg5 {[%clk 0:02:52.4]} 7... h6 {[%clk 0:02:37.2]} 8. Bh4 {[%clk
0:02:52.4]} 8... d6 {[%clk 0:02:35.2]} 9. Qd2 {[%clk 0:02:50.6]} 9... Be6 {[%clk
0:02:30.8]} 10. O-O-O {[%clk 0:02:50.4]} 10... Nd4 {[%clk 0:02:30.5]} 11. Kb1
{[%clk 0:02:42.1]} 11... c6 {[%clk 0:02:27.9]} 12. Nxd4 {[%clk 0:02:33.4]} 12...
Bxd4 {[%clk 0:02:28.8]} 13. Ne2 {[%clk 0:02:33.4]} 13... Bb6 {[%clk 0:02:27]}
14. Nf4 {[%clk 0:02:26.6]} 14... g5 {[%clk 0:02:25.3]} 15. Nxe6 {[%clk
0:02:20.4]} 15... fxe6 {[%clk 0:02:21.2]} 16. Bg3 {[%clk 0:02:20.8]} 16... Ng4
{[%clk 0:02:20.9]} 17. h4 {[%clk 0:02:06.9]} 17... Bf2 {[%clk 0:01:59.3]} 18.
Be2 {[%clk 0:01:46.2]} 18... Bxg3 {[%clk 0:01:51.4]} 19. Bxg4 {[%clk 0:01:46.1]}
19... Qf6 {[%clk 0:01:49.2]} 20. hxg5 {[%clk 0:01:42.7]} 20... hxg5 {[%clk
0:01:42.5]} 21. Rh5 {[%clk 0:01:35.2]} 21... Bf4 {[%clk 0:01:41.5]} 22. Qb4
{[%clk 0:01:27.7]} 22... b5 {[%clk 0:01:34.8]} 23. Rdh1 {[%clk 0:01:23.8]} 23...
Be5 {[%clk 0:01:30.9]} 24. Rh8+ {[%clk 0:01:04.6]} 24... Qxh8 {[%clk 0:01:24.7]}
25. Rxh8+ {[%clk 0:01:03.7]} 25... Kxh8 {[%clk 0:01:25.6]} 26. a4 {[%clk
0:01:02.3]} 26... Rab8 {[%clk 0:01:19.2]} 27. a5 {[%clk 0:01:01.8]} 27... Rf1+
{[%clk 0:01:12.3]} 28. Ka2 {[%clk 0:01:00.9]} 28... Re8 {[%clk 0:00:56.1]} 29.
Qd2 {[%clk 0:00:54]} 29... Rf4 {[%clk 0:00:47.9]} 30. Be2 {[%clk 0:00:49.6]}
30... Bf6 {[%clk 0:00:41.8]} 31. Qe3 {[%clk 0:00:47.7]} 31... c5 {[%clk
0:00:33.2]} 32. g3 {[%clk 0:00:34.3]} 32... Bd4 {[%clk 0:00:31.5]} 33. Qc1
{[%clk 0:00:29.9]} 33... Rf2 {[%clk 0:00:29.5]} 34. Qh1+ {[%clk 0:00:29]} 34...
Kg7 {[%clk 0:00:27.1]} 35. Qh5 {[%clk 0:00:29.1]} 35... Kf8 {[%clk 0:00:21.8]}
36. Bg4 {[%clk 0:00:28.1]} 36... Rxc2 {[%clk 0:00:16.4]} 37. Qh6+ {[%clk
0:00:28.6]} 37... Bg7 {[%clk 0:00:15.9]} 38. Qxg5 {[%clk 0:00:26.2]} 38... Rxb2+
{[%clk 0:00:15.6]} 39. Ka3 {[%clk 0:00:26.6]} 39... b4+ {[%clk 0:00:14.1]} 40.
Ka4 {[%clk 0:00:26.5]} 40... Ra2+ {[%clk 0:00:10.3]} 41. Kb5 {[%clk 0:00:26.5]}
41... Be5 {[%clk 0:00:06]} 42. Qg6 {[%clk 0:00:25.3]} 42... Rf2 {[%clk
0:00:04.1]} 43. Bxe6 {[%clk 0:00:22.6]} 43... Rf6 {[%clk 0:00:03.7]} 44. Qg8+
{[%clk 0:00:16.1]} 44... Ke7 {[%clk 0:00:03.3]} 45. Qh7+ {[%clk 0:00:12.6]}
45... Kxe6 {[%clk 0:00:02.1]} 46. Qh3+ {[%clk 0:00:12]} 46... Ke7 {[%clk
0:00:02.4]} 47. g4 {[%clk 0:00:10.6]} 47... Kd7 {[%clk 0:00:02.5]} 48. g5+
{[%clk 0:00:11]} 48... Rfe6 {[%clk 0:00:03]} 49. g6 {[%clk 0:00:10.7]} 49... Re7
{[%clk 0:00:03.4]} 50. Qf5 {[%clk 0:00:09.2]} 50... Kc7 {[%clk 0:00:03.4]} 51.
a6 {[%clk 0:00:08.6]} 51... b3 {[%clk 0:00:03.5]} 52. Qf8 {[%clk 0:00:07.3]}
52... Re8 {[%clk 0:00:03.7]} 53. Qf7+ {[%clk 0:00:06.6]} 53... R6e7 {[%clk
0:00:04]} 54. Qd5 {[%clk 0:00:07.2]} 54... Rb8+ {[%clk 0:00:02.9]} 55. Kc4
{[%clk 0:00:06.7]} 55... b2 {[%clk 0:00:03.3]} 56. d4 {[%clk 0:00:04.6]} 56...
Rb4+ {[%clk 0:00:03.2]} 57. Kd3 {[%clk 0:00:04.2]} 57... Rxd4+ {[%clk
0:00:03.1]} 58. Qxd4 {[%clk 0:00:03.6]} 58... Bxd4 {[%clk 0:00:04]} 59. e5
{[%clk 0:00:02.7]} 59... Rg7 {[%clk 0:00:04.9]} 60. exd6+ {[%clk 0:00:02.3]}
60... Kxd6 {[%clk 0:00:05.8]} 61. Kc2 {[%clk 0:00:02.1]} 61... Rxg6 {[%clk
0:00:05.4]} 62. Kb3 {[%clk 0:00:02.2]} 62... Rg3+ {[%clk 0:00:05.6]} 63. Ka4
{[%clk 0:00:02.8]} 63... b1=Q {[%clk 0:00:05.3]} 64. Ka5 {[%clk 0:00:03]} 64...
Qb6+ {[%clk 0:00:05.3]} 0-1